bitfinex/quotes_ETHUSD_20250611
["timestamp","ask_amount","ask_price","bid_price","bid_amount"]
[1749601449594,0.55,2808.9,2808.1,28.569]
[1749601449595,0.55,2808.7,2808.1,28.569]
[1749601449757,0.55,2808.7,2808.0,30.0]
[1749601449953,0.55,2808.7,2808.0,10.0]
[1749601450183,0.55,2808.7,2808.2,10.0]
[1749601450456,0.55,2808.7,2808.0,10.0]
[1749601450657,0.55,2808.3,2807.4,0.35789166]
[1749601450894,0.55,2808.3,2807.5,2.726]
[1749601451094,0.55,2807.7,2807.1,0.04]
[1749601451296,0.55,2807.5,2807.1,0.04]
[1749601451606,0.55,2807.7,2807.1,0.04]
[1749601451607,0.3551,2807.7,2807.1,0.04]
[1749601451817,0.55,2807.3,2807.1,0.04]
[1749601452031,0.74894,2807.3,2807.1,0.04]
[1749601452329,1.3202,2807.2,2807.1,0.04]
[1749601452467,1.8702,2807.2,2807.1,0.04]
[1749601453894,0.55,2806.9,2806.1,0.04]
[1749601454091,0.55,2806.5,2806.1,0.04]
[1749601454367,0.55,2806.3,2806.1,0.04]
[1749601454581,0.55,2806.2,2806.1,0.04]
[1749601454781,1.7647,2806.2,2806.1,0.04]
[1749601455394,0.55,2805.9,2805.1,0.04]
[1749601455616,1.3444,2805.7,2805.1,0.04]
[1749601457944,1.3444,2805.7,2805.2,30.0]
[1749601458079,4.012,2806.6,2805.2,0.88252801]
[1749601458281,1.3355,2806.0,2805.4,10.0]
[1749601458481,1.3355,2806.0,2805.2,30.0]
[1749601459183,1.3355,2806.0,2805.4,7.0895263]
[1749601459586,9.41694,2807.3,2805.4,7.0895263]
[1749601459772,1.4575,2807.1,2805.5,10.0]
[1749601459994,0.55,2807.0,2805.2,10.0]
[1749601460196,0.55,2806.6,2805.4,10.0]
[1749601460506,0.55,2806.6,2805.1,7.1295263]
[1749601460507,0.55,2806.0,2805.1,0.04]
[1749601460719,0.55,2805.6,2805.1,0.04]
[1749601460896,0.55,2805.4,2805.1,0.04]
[1749601462707,0.55,2805.2,2805.1,0.04]
[1749601463814,0.55,2805.2,2805.1,0.04]
[1749601466015,1.4436,2805.3,2805.1,0.04]
[1749601467733,0.3551,2805.2,2805.1,0.04]
[1749601469222,0.3551,2805.5,2805.3,10.0]
[1749601469407,0.3551,2805.5,2805.4,48.4346263]
[1749601469609,0.3551,2806.0,2805.5,40.0]
[1749601469811,0.3551,2806.0,2805.8,30.0]
[1749601470009,0.3551,2806.0,2805.5,30.0]
[1749601470213,1.3433,2806.5,2805.8,7.0895263]
[1749601470388,1.3433,2806.5,2805.9,30.0]
[1749601470589,0.3551,2806.4,2805.9,10.839]
[1749601470803,0.3551,2806.4,2805.5,30.0]
[1749601471125,0.55,2806.2,2805.5,30.0]
[1749601471329,0.55,2806.2,2805.7,40.0]
[1749601471489,0.9051,2806.2,2805.7,30.0]
[1749601471690,0.3551,2806.2,2805.7,30.0]
[1749601471900,0.3551,2806.2,2805.9,40.0]
[1749601472103,0.3551,2806.1,2805.6,1.3663]
[1749601472306,0.3551,2805.9,2805.2,30.0]
[1749601472637,1.4537,2806.0,2805.2,30.0]
[1749601472849,1.4537,2806.0,2805.2,22.295]
[1749601473049,0.55,2805.9,2805.1,0.04]
[1749601473331,0.9051,2805.9,2805.1,0.04]
[1749601473707,0.9051,2805.9,2805.2,30.0]
[1749601473908,0.9051,2805.9,2805.2,8.651]
[1749601474105,0.9051,2805.9,2805.2,10.0]
[1749601474314,0.9051,2805.9,2805.1,0.04]
[1749601474523,0.9051,2805.9,2805.2,30.0]
[1749601474704,0.55,2805.9,2805.2,31.338]
[1749601474908,1.4537,2806.0,2805.4,30.0]
[1749601475707,1.4537,2806.0,2805.3,7.0895263]
[1749601475708,1.4537,2806.0,2805.3,30.0]
[1749601477029,0.9051,2806.2,2805.4,30.0]
[1749601477233,0.3551,2806.2,2805.4,30.0]
[1749601479008,0.3551,2806.2,2805.8,30.0]
[1749601479308,0.3551,2806.2,2805.9,30.0]
[1749601479603,0.3551,2806.6,2805.9,30.0]
[1749601479803,0.3551,2806.6,2805.9,4.001]
[1749601480236,0.3551,2806.6,2805.5,10.0]
[1749601480415,0.3551,2806.6,2805.7,40.0]
[1749601480615,0.3551,2806.6,2805.7,30.0]
[1749601482307,0.3551,2806.6,2805.8,7.0895263]
[1749601482536,2.58007295,2807.8,2806.3,30.0]
[1749601482537,0.3551,2807.1,2806.3,30.0]
[1749601482735,1.34,2807.2,2806.3,30.0]
[1749601483617,1.34,2807.2,2806.7,30.0]
[1749601484169,1.34,2807.2,2806.6,30.0]
[1749601484509,0.55,2807.1,2806.2,1.3365]
[1749601484741,0.189,2807.0,2806.2,6.04]
[1749601484942,0.189,2807.0,2806.1,30.0]
[1749601484943,0.55,2806.7,2806.1,30.0]
[1749601485142,1.4033,2806.8,2806.1,30.0]
[1749601485317,0.55,2806.7,2806.0,30.0]
[1749601485520,0.55,2806.7,2805.5,3.99]
[1749601485834,0.55,2806.3,2805.6,30.0]
[1749601486003,0.55,2806.3,2805.6,10.0]
[1749601486209,0.55,2806.3,2805.5,40.0]
[1749601486429,0.55,2806.3,2805.6,10.0]
[1749601486919,1.3222,2806.4,2805.7,30.0]
[1749601487126,1.3222,2806.4,2805.8,30.0]
[1749601489518,1.3222,2806.4,2805.9,10.0]
[1749601490342,1.3222,2806.4,2805.7,10.0]
[1749601490545,1.3222,2806.4,2805.9,10.0]
[1749601490746,1.3222,2806.4,2805.7,10.0]
[1749601490922,1.3222,2806.4,2805.9,10.0]
[1749601491130,1.3222,2806.4,2805.4,5.51991655]
[1749601491131,0.55,2806.0,2804.4,1.3914]
[1749601491445,0.55,2806.3,2805.3,10.0]
[1749601491649,0.55,2806.1,2805.3,10.0]
[1749601491847,0.55,2806.1,2805.2,30.0]
[1749601492049,0.55,2806.1,2805.1,10.04]
[1749601492355,0.55,2806.1,2805.6,30.0]
[1749601492526,0.55,2806.1,2805.3,10.0]
[1749601492715,0.55,2806.1,2805.6,30.0]
[1749601493251,0.55,2806.1,2805.6,27.713]
[1749601493450,0.55,2805.9,2805.1,10.04]
[1749601493747,0.55,2805.9,2805.6,30.0]
[1749601493949,0.55,2805.9,2805.4,10.0]
[1749601494117,0.55,2805.9,2805.3,10.0]
[1749601494312,0.55,2805.9,2805.5,10.0]
[1749601494652,0.55,2805.9,2805.4,30.0]
[1749601494850,1.371,2806.0,2805.5,10.0]
[1749601495013,1.371,2806.0,2805.2,40.0]
[1749601495213,1.371,2806.0,2805.2,30.0]
[1749601497011,1.371,2806.0,2805.3,10.0]
[1749601497215,1.371,2806.0,2805.6,30.0]
[1749601497424,1.371,2806.0,2805.6,9.989]
[1749601502423,0.55,2805.9,2805.6,9.989]
[1749601502626,2.3324,2805.7,2805.1,0.04]
[1749601504757,1.7824,2805.7,2805.3,19.2872231]
[1749601504939,0.3551,2805.7,2805.4,9.603]
[1749601505124,0.3551,2805.7,2805.3,10.0]
[1749601505326,0.3551,2805.7,2805.1,0.04]
[1749601505531,1.3913,2805.6,2805.1,0.04]
[1749601505775,1.3913,2805.6,2805.3,10.0]
[1749601505939,0.55,2805.5,2805.3,10.0]
[1749601506267,0.74413,2805.5,2805.1,0.04]
[1749601506630,0.55,2805.5,2805.1,0.04]
[1749601507337,1.3913,2805.6,2805.1,0.04]
[1749601507537,1.733,2806.2,2805.5,13.56436344]
[1749601507737,1.733,2806.2,2805.9,10.0]
[1749601507738,1.3779,2806.2,2805.9,10.0]
[1749601508664,1.734,2806.2,2805.9,10.0]
[1749601508981,1.734,2806.2,2805.7,10.0]
[1749601509272,1.734,2806.2,2805.5,10.0]
[1749601509477,1.734,2806.2,2805.9,10.0]
[1749601509676,0.55,2806.1,2805.3,10.0]
[1749601509887,0.55,2806.1,2805.5,10.0]
[1749601510054,0.55,2806.1,2805.2,30.0]
[1749601510246,0.55,2806.1,2805.4,30.0]
[1749601510444,0.55,2806.1,2805.1,11.4526]
[1749601510674,0.55,2806.1,2805.5,30.0]
[1749601510872,1.734,2806.2,2805.8,10.0]
[1749601511090,1.734,2806.2,2805.4,10.0]
[1749601511380,1.734,2806.2,2805.7,30.0]
[1749601511580,1.734,2806.2,2805.8,10.0]
[1749601511751,0.55,2806.1,2805.3,10.0]
[1749601512097,0.3561,2806.6,2805.8,10.0]
[1749601512256,0.3561,2806.6,2806.1,10.0]
[1749601512461,0.3561,2806.6,2806.0,30.0]
[1749601512778,0.3561,2806.6,2805.8,30.0]
[1749601512779,0.9061,2806.6,2805.8,30.0]
[1749601513023,0.3561,2806.6,2806.0,7.10251318]
[1749601513289,0.3561,2806.6,2806.1,30.0]
[1749601514089,1.8257,2806.5,2805.3,25.384]
[1749601514379,1.8257,2806.5,2805.1,0.04]
[1749601514380,0.9061,2806.3,2805.1,0.04]
[1749601514601,8.00861318,2806.1,2805.1,0.04]
[1749601514747,0.9061,2805.7,2805.1,0.04]
[1749601514946,0.55,2805.5,2805.1,0.04]
[1749601515146,1.7446,2805.6,2805.1,0.04]
[1749601517445,0.55,2805.5,2805.1,0.04]
[1749601519192,0.55,2805.3,2805.1,0.04]
[1749601519494,0.75086,2805.2,2805.1,0.04]
[1749601519794,2.13596,2805.2,2805.1,0.04]
[1749601519961,1.9351,2805.2,2805.1,0.04]
[1749601522971,1.3851,2805.2,2805.1,0.04]
[1749601524098,1.9351,2805.2,2805.1,0.04]
[1749601524308,2.2912,2805.2,2805.1,0.04]
[1749601524515,2.52032,2805.2,2805.1,0.04]
[1749601524804,2.2912,2805.2,2805.1,0.04]
[1749601525007,1.7412,2805.2,2805.1,0.04]
[1749601527086,1.7514,2805.5,2804.6,40.0]
[1749601527293,0.3561,2805.3,2804.5,30.0]
[1749601529966,0.3561,2805.2,2804.5,30.0]
[1749601530199,0.3561,2805.2,2804.7,30.0]
[1749601530368,1.3953,2805.5,2804.7,30.0]
[1749601530369,1.7514,2805.5,2804.7,30.0]
[1749601530702,4.71,2805.7,2805.0,47.10251318]
[1749601530905,1.3644,2806.3,2805.4,30.0]
[1749601531273,1.3644,2806.3,2805.6,30.0]
[1749601533155,1.3644,2806.3,2805.6,19.975]
[1749601533604,0.55,2806.2,2805.6,3.841]
[1749601533779,0.55,2806.2,2805.4,30.0]
[1749601533980,0.55,2806.6,2805.2,2.293]
[1749601534179,0.55,2806.4,2804.8,1.156]
[1749601534378,1.3786,2805.8,2804.9,30.0]
[1749601534587,0.55,2805.7,2804.8,1.156]
[1749601535193,0.55,2805.5,2804.8,1.156]
[1749601535392,1.3786,2805.2,2804.8,1.156]
[1749601535573,0.55,2805.1,2804.1,10.04]
[1749601535781,0.55,2805.1,2804.2,30.0]
[1749601536371,0.55,2804.7,2804.1,0.04]
[1749601536583,0.55,2804.7,2804.2,6.647]
[1749601536907,0.73645,2804.7,2804.1,0.04]
[1749601537109,0.55,2804.7,2804.1,0.04]
[1749601538017,0.55,2804.3,2804.1,0.04]
[1749601539281,8.1156,2804.1,2801.6,1.068941]
[1749601539500,8.1156,2804.1,2799.3,1.72022449]
[1749601539501,0.3561,2802.7,2800.2,30.0]
[1749601539814,0.55,2803.0,2800.9,0.18414953]
[1749601539815,0.55,2801.5,2800.9,0.18414953]
[1749601539990,0.3561,2801.6,2801.0,0.2980302]
[1749601540502,4.077,2801.9,2801.0,0.2980302]
[1749601540832,11.3909,2802.4,2801.0,0.2980302]
[1749601540833,1.3909,2802.4,2801.1,30.0]
[1749601541034,1.3909,2802.4,2801.3,40.0]
[1749601541231,0.55,2802.7,2801.5,28.167]
[1749601541411,0.55,2802.8,2801.5,8.187]
[1749601541716,1.4108,2802.9,2801.9,30.0]
[1749601542022,1.4508,2802.9,2802.1,30.0]
[1749601542387,0.04,2802.9,2802.1,30.0]
[1749601542776,0.04,2802.9,2802.1,18.834]
[1749601542983,0.04,2802.9,2801.9,5.731]
[1749601543194,0.55,2802.8,2801.8,10.0]
[1749601543417,0.55,2802.8,2801.6,4.089]
[1749601543418,0.55,2802.8,2801.7,40.0]
[1749601543725,0.55,2802.8,2801.7,28.111]
[1749601544219,0.29704024,2802.7,2801.7,15.604]
[1749601544376,0.29704024,2802.7,2801.7,6.824]
[1749601544587,1.2941,2802.6,2801.8,10.0]
[1749601544887,1.2941,2802.6,2801.7,30.0]
[1749601545520,1.2941,2802.6,2801.7,12.072]
[1749601545703,1.2941,2802.6,2801.6,4.089]
[1749601545902,1.2941,2802.6,2801.2,1.202]
[1749601546122,1.2941,2802.6,2801.3,30.0]
[1749601546287,0.55,2802.5,2801.1,31.202]
[1749601546484,0.55,2802.5,2800.8,7.55539936]
[1749601546485,1.3206,2802.4,2800.9,30.0]
[1749601547027,0.55,2802.3,2800.9,30.0]
[1749601548721,1.3206,2802.4,2801.4,30.0]
[1749601548924,1.3206,2802.4,2801.3,30.0]
[1749601549129,1.3206,2802.4,2801.5,30.0]
[1749601549315,1.3206,2802.4,2801.4,10.0]
[1749601549501,1.3206,2802.4,2801.5,30.0]
[1749601550292,1.4302,2802.9,2801.7,37.10320755]
[1749601550493,1.4302,2802.9,2801.8,30.0]
[1749601551422,1.4302,2802.9,2801.8,7.947]
[1749601551626,2.4,2802.7,2802.0,10.0]
[1749601551823,2.83802,2802.7,2802.0,15.109]
[1749601552023,2.83802,2802.7,2801.9,15.126]
[1749601552426,2.83802,2802.7,2801.7,15.331]
[1749601552729,0.9061,2802.4,2801.6,1.203]
[1749601553728,0.9061,2802.4,2801.1,10.0]
[1749601553915,5.4651,2802.5,2801.0,14.504]
[1749601553916,0.9061,2802.0,2801.0,14.504]
[1749601554091,0.9061,2802.0,2801.0,15.602]
[1749601554292,0.9061,2802.0,2800.9,1.203]
[1749601555523,0.3561,2802.0,2801.3,8.52930755]
[1749601555698,0.3561,2801.9,2801.5,30.0]
[1749601555897,0.3561,2802.5,2801.5,30.0]
[1749601556232,0.3561,2802.5,2801.4,30.0]
[1749601558700,0.3561,2802.5,2801.7,40.0]
[1749601558901,0.3561,2802.5,2801.7,30.0]
[1749601560439,0.3561,2802.5,2801.5,10.0]
[1749601560640,0.3561,2802.5,2801.6,10.0]
[1749601560845,0.3561,2802.5,2801.4,40.0]
[1749601561017,0.3561,2802.2,2801.4,30.0]
[1749601561523,0.3561,2802.2,2801.3,1.4261]
[1749601561724,0.3561,2802.2,2801.4,40.0]
[1749601561929,0.3561,2802.2,2801.4,30.0]
[1749601562257,0.3561,2802.5,2801.4,30.0]
[1749601563233,0.3561,2802.5,2801.5,10.0]
[1749601563437,0.3561,2802.5,2801.7,10.0]
[1749601563638,0.3561,2802.5,2801.4,4.054]
[1749601563842,0.3561,2802.5,2801.8,10.0]
[1749601564008,0.3561,2802.5,2801.5,10.0]
[1749601564419,0.3561,2802.5,2801.7,10.0]
[1749601564616,0.3561,2802.5,2801.8,30.0]
[1749601564817,0.3561,2802.5,2801.5,10.0]
[1749601565019,0.3561,2802.5,2801.9,10.0]
[1749601565218,0.3561,2802.5,2801.5,10.0]
[1749601565455,0.3561,2802.5,2801.9,10.0]
[1749601565677,0.3561,2802.3,2801.6,30.0]
[1749601565957,0.3561,2802.3,2802.1,10.0]
[1749601566174,0.3561,2802.3,2802.2,40.0]
[1749601566514,0.3561,2802.3,2802.2,19.001]
[1749601568147,0.3961,2802.9,2802.5,10.0]
[1749601568341,0.3561,2802.7,2802.6,30.0]
[1749601569231,0.3961,2802.9,2802.7,10.0]
[1749601569559,0.3961,2802.9,2802.1,10.34772134]
[1749601569755,0.3961,2802.9,2802.3,10.0]
[1749601569934,0.3961,2802.9,2802.7,10.0]
[1749601570139,0.3961,2802.9,2802.8,40.0]
[1749601570334,0.04,2802.9,2802.8,40.0]
[1749601571246,0.04,2802.9,2802.8,41.184]
[1749601571446,0.04,2802.9,2802.8,19.932]
[1749601571632,0.04,2802.9,2802.8,10.0]
[1749601572571,0.3561,2802.7,2802.0,30.0]
[1749601572774,0.9061,2802.6,2801.6,30.0]
[1749601572977,0.3561,2802.4,2801.6,30.0]
[1749601573149,0.3561,2802.4,2801.8,30.0]
[1749601573354,0.3561,2802.4,2801.6,30.0]
[1749601573549,0.3561,2802.4,2801.9,10.0]
[1749601573755,0.3561,2802.4,2801.5,11.184]
[1749601573946,0.3561,2802.4,2801.9,10.0]
[1749601574272,0.3561,2802.4,2801.7,10.0]
[1749601574445,0.3561,2802.4,2801.5,11.184]
[1749601574773,0.3561,2802.4,2801.9,10.0]
[1749601574978,0.3561,2802.4,2801.7,10.0]
[1749601575174,0.3561,2802.4,2801.9,10.0]
[1749601575382,0.58209,2802.4,2801.7,10.0]
[1749601575578,0.58209,2802.4,2801.9,10.0]
[1749601576040,0.58209,2802.4,2801.6,24.537]
[1749601576247,0.58209,2802.4,2801.9,10.0]
[1749601576447,0.58209,2802.4,2801.7,10.0]
[1749601576774,0.58209,2802.4,2801.5,11.184]
[1749601577083,0.58209,2802.4,2801.6,29.132]
[1749601577244,0.58209,2802.4,2801.5,1.184]
[1749601577245,0.58209,2802.4,2801.9,10.0]
[1749601577595,0.58209,2802.4,2801.5,1.184]
[1749601577596,0.3561,2802.2,2801.5,1.184]
[1749601578373,0.3561,2802.2,2801.7,10.0]
[1749601578565,0.3561,2802.2,2801.5,1.184]
[1749601578877,0.559759,2802.2,2801.5,1.184]
[1749601579278,0.559759,2802.2,2801.5,11.184]
[1749601579577,1.9295,2801.7,2800.9,10.0]
[1749601579778,1.7356,2801.7,2801.0,47.10320755]
[1749601579944,1.7356,2801.7,2801.4,10.0]
[1749601579945,0.3561,2801.7,2801.4,10.0]
[1749601580144,0.3561,2801.7,2801.5,30.0]
[1749601580340,0.3561,2801.7,2801.5,23.986]
[1749601580752,1.3976,2802.1,2801.5,23.986]
[1749601580753,0.3561,2802.0,2801.5,23.986]
[1749601581944,0.3561,2802.0,2801.2,30.0]
[1749601582142,0.3561,2802.0,2801.0,0.45219181]
[1749601582360,0.3561,2801.8,2800.9,12.86]
[1749601582555,1.3976,2801.9,2800.9,10.0]
[1749601582782,1.3976,2801.9,2800.7,11.184]
[1749601582951,1.62797,2801.9,2800.8,30.0]
[1749601583364,1.62797,2801.9,2800.7,1.184]
[1749601583365,0.55,2801.8,2801.1,10.0]
[1749601583565,1.4142,2801.7,2800.7,1.184]
[1749601583765,1.4142,2801.7,2800.8,10.0]
[1749601583976,1.633657,2801.7,2800.8,10.0]
[1749601584551,1.633657,2801.7,2800.9,10.0]
[1749601584803,1.3636,2800.9,2800.2,30.0]
[1749601584953,1.3636,2800.9,2800.1,0.04]
[1749601585450,1.3636,2801.6,2800.3,11.49]
[1749601585658,1.3636,2801.6,2800.7,10.0]
[1749601585965,2.4,2801.4,2800.7,10.0]
[1749601586360,1.9136,2801.3,2800.6,17.002]
[1749601586561,1.9136,2801.3,2800.7,10.0]
[1749601586761,1.9136,2801.3,2800.5,10.0]
[1749601586962,1.7197,2801.2,2800.1,4.074]
[1749601587175,0.55,2800.9,2800.1,0.04]
[1749601587782,0.55,2800.8,2800.1,0.04]
[1749601587947,1.9136,2800.9,2800.1,0.04]
[1749601588386,1.3636,2800.6,2800.1,0.04]
[1749601589350,1.3636,2800.9,2800.4,30.0]
[1749601589576,1.3636,2800.9,2800.1,0.04]
[1749601589913,1.3636,2800.9,2800.4,30.0]
[1749601590898,0.3561,2801.1,2800.6,30.0]
[1749601591095,1.5041,2801.2,2800.6,30.0]
[1749601591398,1.5041,2801.2,2800.8,30.0]
[1749601591608,1.4134,2801.6,2800.8,30.0]
[1749601592198,4.71,2802.4,2800.7,10.0]
[1749601592199,0.3561,2802.0,2801.4,10.67275958]
[1749601592379,1.4134,2802.4,2801.7,10.0]
[1749601592561,1.4134,2802.4,2801.4,11.185]
[1749601592748,1.4134,2802.4,2801.2,1.4699]
[1749601592954,1.4134,2802.4,2801.5,10.0]
[1749601593252,1.4134,2802.4,2801.3,11.185]
[1749601593253,2.4,2802.2,2801.3,11.185]
[1749601593457,2.4,2802.2,2801.5,17.10320755]
[1749601593696,2.4,2802.2,2801.8,30.0]
[1749601593996,1.449,2802.0,2800.7,7.46801671]
[1749601594197,1.449,2802.0,2801.3,30.0]
[1749601594504,1.449,2802.0,2801.5,30.0]
[1749601594659,1.449,2802.0,2801.1,7.10320755]
[1749601594660,1.4607,2802.7,2801.6,10.0]
[1749601594992,0.29704024,2802.6,2801.8,30.0]
[1749601595489,0.29704024,2802.6,2801.8,10.0]
[1749601595655,0.29704024,2802.6,2801.7,10.0]
[1749601595855,0.29704024,2802.6,2801.9,10.0]
[1749601596287,0.29704024,2802.6,2801.7,10.0]
[1749601596588,0.29704024,2802.6,2802.0,30.0]
[1749601596792,0.29704024,2802.6,2801.9,40.0]
[1749601597085,0.29704024,2802.6,2801.7,7.10320755]
[1749601597086,0.29704024,2802.6,2801.7,10.0]
[1749601597288,1.4159,2802.5,2801.9,0.69247603]
[1749601597488,1.4159,2802.5,2801.8,0.35539053]
[1749601597653,1.4159,2802.5,2801.8,30.0]
[1749601598085,1.4159,2802.5,2801.7,30.0]
[1749601598478,1.496,2802.8,2801.7,37.10320755]
[1749601598798,1.496,2802.8,2801.9,30.0]
[1749601599491,1.496,2802.8,2802.1,30.0]
[1749601599663,1.496,2802.8,2802.2,30.0]
[1749601601112,0.04,2802.9,2802.2,31.4039]
[1749601601410,0.04,2802.9,2802.4,30.0]
[1749601601588,0.04,2802.9,2802.7,40.0]
[1749601601904,0.04,2802.9,2802.8,33.56786071]
[1749601602070,0.04,2802.9,2802.3,30.0]
[1749601602270,0.04,2802.9,2802.1,30.0]
[1749601602488,0.3961,2802.9,2802.1,30.0]
[1749601602673,0.3961,2802.9,2802.2,4.025]
[1749601603023,0.3961,2802.9,2802.3,30.0]
[1749601603473,0.04,2802.9,2802.4,30.0]
[1749601604003,0.04,2802.9,2802.5,30.0]
[1749601604387,0.04,2802.9,2802.5,20.10470912]
[1749601604590,0.04,2802.9,2802.8,30.10470912]
[1749601604789,0.04,2802.9,2802.8,10.0]
[1749601605394,0.04,2802.9,2802.8,40.0]
[1749601607465,0.04,2802.9,2802.8,34.586]
[1749601607765,0.04,2802.9,2802.8,10.0]
[1749601608234,0.04,2802.9,2802.8,40.0]
[1749601609315,0.04,2802.9,2802.8,12.818]
[1749601612515,0.04,2802.9,2802.8,19.92120755]
[1749601612722,0.3561,2803.3,2802.9,13.56761143]
[1749601612921,1.367,2803.7,2803.3,10.0]
[1749601613088,1.367,2803.7,2803.5,10.0]
[1749601613419,0.3561,2803.6,2803.3,30.0]
[1749601613787,0.3561,2803.6,2803.3,3.555]
[1749601614103,0.3561,2803.6,2803.5,29.219]
[1749601614285,0.3561,2803.6,2803.4,10.0]
[1749601614472,0.3561,2803.6,2803.5,40.0]
[1749601614675,0.3561,2803.6,2803.5,44.004]
[1749601614903,0.3561,2803.6,2803.5,47.57096985]
[1749601615107,0.3561,2803.6,2803.5,44.004]
[1749601615282,0.3561,2803.6,2803.5,47.57096985]
[1749601615487,0.3561,2803.6,2803.5,44.46014341]
[1749601615683,0.3561,2803.6,2803.5,44.004]
[1749601616285,0.04,2803.9,2803.7,30.0]
[1749601616612,0.04,2803.9,2803.8,43.999]
[1749601616999,0.04,2803.9,2803.8,45.4562]
[1749601617199,0.04,2803.9,2803.8,49.0227882]
[1749601619927,0.04,2804.9,2804.4,3.56579445]
[1749601620077,0.04,2804.9,2804.6,30.0]
[1749601620274,0.04,2804.9,2804.8,40.0]
[1749601621261,1.4708,2805.8,2804.9,40.0]
[1749601621384,0.04,2805.9,2805.3,30.0]
[1749601621728,0.04,2805.9,2805.8,10.0]
[1749601621925,0.04,2805.9,2805.8,43.992]
[1749601622123,0.04,2805.9,2805.8,54.65925345]
[1749601622291,0.04,2805.9,2805.8,55.01853488]
[1749601622477,0.04,2805.9,2805.8,56.38093488]
[1749601622681,0.04,2805.9,2805.8,45.71368143]
[1749601622880,0.04,2805.9,2805.8,46.89168143]
[1749601624013,0.04,2805.9,2805.8,50.45472733]
[1749601624222,0.04,2805.9,2805.8,57.55793488]
[1749601624799,0.04,2805.9,2805.8,58.01407829]
[1749601625006,0.04,2805.9,2805.8,57.55793488]
[1749601625484,0.04,2806.9,2806.8,10.0]
[1749601625684,0.04,2806.9,2806.8,47.55177611]
[1749601625919,0.04,2807.9,2807.2,40.0]
[1749601626120,0.04,2807.9,2807.4,50.0]
[1749601626284,0.04,2807.9,2807.7,26.723]
[1749601626485,0.04,2807.9,2806.8,4.001]
[1749601626689,1.3595,2807.8,2806.9,19.302]
[1749601627032,1.3595,2807.8,2806.9,10.0]
[1749601627217,0.55,2807.7,2807.2,10.0]
[1749601627536,0.55,2807.7,2806.8,4.001]
[1749601627537,1.3595,2807.5,2806.7,3.999]
[1749601627690,1.3595,2807.5,2806.8,4.0]
[1749601627890,1.3595,2807.5,2806.9,30.0]
[1749601628245,1.3595,2807.5,2807.0,30.0]
[1749601628429,1.3595,2807.5,2807.2,30.0]
[1749601628725,1.4214,2807.8,2807.4,30.0]
[1749601629027,1.4214,2807.8,2807.6,30.0]
[1749601629334,0.04,2807.9,2807.8,40.0]
[1749601630687,0.04,2807.9,2807.8,43.995]
[1749601631233,0.04,2807.9,2807.8,43.994]
[1749601632127,0.04,2807.9,2807.8,10.0]
[1749601632291,1.4614,2807.9,2807.8,40.0]
[1749601632631,0.04,2807.9,2807.8,40.0]
[1749601638844,0.04,2807.9,2807.8,43.978]
[1749601640275,0.04,2807.9,2807.8,52.55605818]
[1749601640588,0.04,2807.9,2807.8,48.99455096]
[1749601640940,0.3561,2808.8,2807.8,52.55605818]
[1749601641195,0.3561,2808.8,2808.4,40.0]
[1749601641392,0.04,2808.9,2808.4,10.0]
[1749601641537,0.04,2808.9,2808.5,10.0]
[1749601642046,0.04,2808.9,2808.3,34.274]
[1749601642353,0.04,2808.9,2808.3,10.0]
[1749601642543,0.04,2808.9,2808.6,30.0]
[1749601642741,0.04,2808.9,2808.8,40.0]
[1749601643175,0.04,2808.9,2808.8,16.779]
[1749601643341,0.04,2808.9,2808.8,14.898]
[1749601644078,1.4414,2808.9,2808.8,10.0]
[1749601644277,1.4414,2808.9,2808.8,32.438]
[1749601644479,1.7975,2808.9,2808.8,10.0]
[1749601644880,0.3961,2808.9,2808.8,10.0]
[1749601645398,0.04,2808.9,2808.8,40.0]
[1749601646212,0.04,2808.9,2808.8,21.042]
[1749601646506,0.04,2808.9,2808.8,16.412]
[1749601646871,0.04,2808.9,2808.8,12.807]
[1749601647070,0.04,2808.9,2808.8,10.0]
[1749601647871,1.23869803,2808.9,2808.8,10.0]
[1749601650694,2.29459095,2808.9,2808.8,10.0]
[1749601651210,1.23869803,2808.9,2808.8,10.0]
[1749601651986,2.64092938,2808.9,2808.8,10.0]
[1749601652374,4.50603326,2808.9,2808.8,10.0]
[1749601652604,3.65380191,2808.9,2808.8,10.0]